fUST/lending_fUST_20250717
["ID","MTS","AMOUNT","RATE_DAILY","PERIOD"]
[372591846,1752696651348,-226.39,0.00024986,2]
[372591847,1752696651357,-1125.24,0.00024987,2]
[372591848,1752696651367,-784.7,0.00024987,2]
[372591849,1752696651378,-2384.71,0.00024987,2]
[372591850,1752696651391,-759.2,0.00024987,2]
[372591851,1752696651400,-2113.03,0.00024993,2]
[372591852,1752696651409,-618.73,0.00024993,2]
[372591853,1752696651419,-1109.25,0.00024993,2]
[372591854,1752696651430,-1000.0,0.00024999,7]
[372591855,1752696651439,-1000.0,0.00024999,12]
[372591856,1752696651449,-165.0,0.00025,7]
[372591857,1752696651459,-151.038335,0.00025,9]
[372591858,1752696651469,-358.0,0.00025006,2]
[372591859,1752696651480,-153.0,0.00025014,2]
[372591860,1752696651489,-576.8651031,0.00025014,2]
[372591861,1752696651499,-159.7314836,0.00025014,2]
[372591862,1752696651508,-178.021619,0.00025014,2]
[372591863,1752696651517,-576.8651031,0.00025014,2]
[372591864,1752696651526,-159.7314836,0.00025014,2]
[372591865,1752696651535,-576.8651031,0.00025014,2]
[372591866,1752696651544,-178.021619,0.00025014,2]
[372591867,1752696651554,-178.021619,0.00025014,2]
[372591868,1752696651563,-576.8651031,0.00025014,2]
[372591869,1752696651572,-178.021619,0.00025014,2]
[372591870,1752696651582,-319.4629672,0.00025014,2]
[372591871,1752696651591,-159.7314836,0.00025014,2]
[372591872,1752696651600,-178.021619,0.00025014,2]
[372591873,1752696651610,-576.8651031,0.00025014,2]
[372591874,1752696651619,-159.7314836,0.00025014,2]
[372591875,1752696651629,-576.8651031,0.00025014,2]
[372591876,1752696651638,-178.021619,0.00025014,2]
[372591877,1752696651648,-159.7314836,0.00025014,2]
[372591878,1752696651658,-178.021619,0.00025014,2]
[372591879,1752696651667,-576.8651031,0.00025014,2]
[372591880,1752696651680,-159.7314836,0.00025014,2]
[372591881,1752696651690,-366.0,0.00025019,2]
[372591882,1752696651699,-6432.44306878,0.00025022,2]
[372591883,1752696651709,-151.038335,0.00025048,7]
[372591884,1752696651718,-151.038335,0.00025055,3]
[372591885,1752696651728,-800.0,0.0002507,2]
[372591886,1752696651738,-500.0,0.0002507,5]
[372591887,1752696651748,-177.46811819,0.00025096,2]
[372591888,1752696651757,-1060.0,0.00025132,2]
[372591889,1752696651766,-6432.44306878,0.00025133,2]
[372591890,1752696651775,-199.5,0.00025145,7]
[372591891,1752696651785,-151.038335,0.00025148,6]
[372591892,1752696651795,-1052.71329221,0.00025164,2]
[372591893,1752696651804,-1690.20660505,0.00025166,2]
[372591894,1752696651813,-3000.55657695,0.00025166,2]
[372591895,1752696651823,-2032.49028934,0.00025166,2]
[372591896,1752696651833,-1309.85205121,0.00025166,2]
[372591897,1752696651843,-891.87,0.00025167,2]
[372591898,1752696651853,-527.72776656,0.00025167,2]
[372591899,1752696651862,-445.01768409,0.00025167,2]
[372591900,1752696651872,-3242.80014733,0.00025176,12]
[372591901,1752696651882,-500.0,0.00025206,2]
[372591902,1752696651892,-206.0,0.0002523,2]
[372591903,1752696651901,-205.0,0.0002523,2]
[372591904,1752696651911,-6432.44306878,0.00025244,2]
[372591905,1752696651924,-358.0,0.00025251,2]
[372591906,1752696651933,-1125.41755218,0.00025261,2]
[372591907,1752696651943,-784.73020931,0.00025261,2]
[372591908,1752696651952,-2384.75968434,0.00025261,2]
[372591909,1752696651962,-759.37379112,0.00025261,2]
[372591910,1752696651971,-618.75,0.00025267,2]
[372591911,1752696651981,-1109.35,0.00025267,2]
[372591912,1752696651990,-153.0,0.00025288,2]
[372591913,1752696651999,-153.0,0.00025288,2]
[372591914,1752696652009,-153.0,0.00025288,2]
[372591915,1752696652018,-153.0,0.00025288,2]
[372591916,1752696652027,-153.0,0.00025288,2]
[372591917,1752696652036,-153.7085644,0.00025288,2]
[372591918,1752696652046,-151.038335,0.00025315,12]
[372591919,1752696652055,-300.0,0.00025321,2]
[372591920,1752696652065,-358.0,0.00025327,2]
[372591921,1752696652077,-654.664,0.00025338,2]
[372591922,1752696652086,-2200.0,0.00025338,2]
[372591923,1752696652096,-429.1687796,0.00025342,2]
[372591924,1752696652106,-1792.441711,0.0002535,16]
[372591925,1752696652118,-358.0,0.00025352,2]
[372591926,1752696652129,-6432.44306878,0.00025355,2]
[372591927,1752696652139,-855.7213118,0.0002537,2]
[372591928,1752696652148,-200.0,0.0002537,13]
[372591929,1752696652157,-6110.02234996,0.00025395,5]
[372591930,1752696652167,-5000.0,0.00025395,2]
[372591931,1752696652182,-5000.0,0.00025395,5]
[372591932,1752696652191,-5000.0,0.00025395,6]
[372591933,1752696652202,-5000.0,0.00025395,4]
[372591934,1752696652211,-3242.80014733,0.00025417,13]
[372591935,1752696652221,-500.0,0.00025452,2]
[372591936,1752696652230,-151.038335,0.00025453,12]
[372591937,1752696652240,-1400.0,0.00025461,2]
[372591938,1752696652250,-358.0,0.00025462,2]
[372591939,1752696652259,-6432.44306878,0.00025466,2]
[372591940,1752696652268,-500.0,0.0002548,2]
[372591941,1752696652278,-1400.0,0.00025489,2]
[372591942,1752696652288,-800.0,0.00025514,2]
[372591943,1752696652298,-199.5,0.00025516,7]
[372591944,1752696652307,-1400.0,0.00025555,2]
[372591945,1752696652317,-206.0,0.0002556,2]
[372591946,1752696652327,-205.0,0.0002556,2]
[372591947,1752696652338,-6432.44306878,0.00025577,2]
[372591948,1752696652347,-358.0,0.00025583,2]
[372591949,1752696652357,-293.85068442,0.00025586,2]
[372591950,1752696652366,-1400.0,0.0002559,2]
[372591951,1752696652376,-151.038335,0.00025592,12]
[372591952,1752696652388,-800.0,0.00025593,2]
[372591953,1752696652398,-5262.95,0.000256,7]
[372591954,1752696652407,-527.23,0.000256,31]
[372591955,1752696652417,-527.23,0.000256,31]
[372591956,1752696652430,-527.23,0.000256,31]
[372591957,1752696652439,-527.23,0.000256,31]
[372591958,1752696652448,-527.23,0.000256,31]
[372591959,1752696652459,-527.23,0.000256,31]
[372591960,1752696652468,-527.23,0.000256,31]
[372591961,1752696652478,-527.23,0.000256,31]
[372591962,1752696652487,-527.23,0.000256,31]
[372591963,1752696652498,-527.23,0.000256,31]
[372591964,1752696652508,-527.23,0.000256,31]
[372591965,1752696652518,-527.23,0.000256,31]
[372591966,1752696652528,-527.23,0.000256,31]
[372591967,1752696652538,-527.23,0.000256,31]
[372591968,1752696652548,-527.23,0.000256,31]
[372591969,1752696652558,-527.23,0.000256,31]
[372591970,1752696652568,-151.038335,0.00025609,10]
[372591971,1752696652577,-800.0,0.00025611,2]
[372591972,1752696652587,-358.0,0.00025627,2]
[372591973,1752696652597,-3020.1310628,0.00025635,2]
[372591974,1752696652607,-800.0,0.00025637,2]
[372591975,1752696652616,-167.30025117,0.00025655,2]
[372591976,1752696652625,-3242.80014733,0.00025659,13]
[372591977,1752696652635,-1160.0,0.00025679,2]
[372591978,1752696652645,-6432.44306878,0.00025688,2]
[372591979,1752696652655,-34764.33,0.000257,2]
[372591980,1752696652664,-500.0,0.00025713,2]
[372591981,1752696652676,-151.038335,0.0002573,12]
[372591982,1752696652686,-800.0,0.00025732,2]
[372591983,1752696652695,-500.0,0.00025738,2]
[372591984,1752696652704,-150.6881,0.00025739,2]
[372591985,1752696652713,-1254.143064,0.0002574,5]
[372591986,1752696652722,-500.0,0.00025741,2]
[372591987,1752696652733,-1400.0,0.00025742,2]
[372591988,1752696652743,-800.0,0.00025743,2]
[372591989,1752696652752,-1400.0,0.00025747,2]
[372591990,1752696652762,-800.0,0.00025753,2]
[372591991,1752696652771,-628.34038707,0.00025754,2]
[372591992,1752696652781,-151.0,0.00025754,2]
[372591993,1752696652791,-1000.0,0.0002576,5]
[372591994,1752696652800,-153.0,0.00025769,30]
[372591995,1752696652810,-153.0,0.00025769,30]
[372591996,1752696652819,-153.0,0.00025769,30]
[372591997,1752696652829,-153.0,0.00025769,30]
[372591998,1752696652838,-153.0,0.00025769,30]
[372591999,1752696652848,-153.0,0.00025769,30]
[372592000,1752696652857,-153.0,0.00025769,30]
[372592001,1752696652866,-153.0,0.00025769,30]
[372592002,1752696652876,-153.0,0.00025769,30]
[372592003,1752696652885,-1362.9548862,0.0002577,16]
[372592004,1752696652894,-153.0,0.0002577,30]
[372592005,1752696652903,-153.0,0.0002577,30]
[372592006,1752696652913,-153.0,0.0002577,30]
[372592007,1752696652924,-153.0,0.0002577,30]
[372592008,1752696652934,-153.0,0.0002577,30]
[372592009,1752696652944,-153.0,0.0002577,30]
[372592010,1752696652954,-153.0,0.0002577,30]
[372592011,1752696652963,-153.0,0.0002577,30]
[372592012,1752696652972,-153.0,0.0002577,30]
[372592013,1752696652982,-153.0,0.00025771,30]
[372592014,1752696652991,-153.0,0.00025771,30]
[372592015,1752696653001,-153.0,0.00025771,30]
[372592016,1752696653011,-153.0,0.00025771,30]
[372592017,1752696653020,-153.0,0.00025771,30]
[372592018,1752696653030,-153.0,0.00025771,30]
[372592019,1752696653039,-153.0,0.00025771,30]
[372592020,1752696653049,-153.0,0.00025771,30]
[372592021,1752696653059,-153.0,0.00025771,30]
[372592022,1752696653067,-153.0,0.00025771,30]
[372592023,1752696653077,-153.0,0.00025771,30]
[372592024,1752696653086,-153.0,0.00025771,30]
[372592025,1752696653096,-153.0,0.00025771,30]
[372592026,1752696653105,-153.0,0.00025771,30]
[372592027,1752696653114,-153.0,0.00025771,30]
[372592028,1752696653124,-153.0,0.00025771,30]
[372592029,1752696653134,-153.0,0.00025772,30]
[372592030,1752696653143,-153.0,0.00025772,30]
[372592031,1752696653152,-153.0,0.00025772,30]
[372592032,1752696653162,-153.0,0.00025772,30]
[372592033,1752696653172,-153.0,0.00025772,30]
[372592034,1752696653182,-153.0,0.00025772,30]
[372592035,1752696653191,-153.0,0.00025772,30]
[372592036,1752696653200,-153.0,0.00025773,30]
[372592037,1752696653210,-153.0,0.00025773,30]
[372592038,1752696653219,-153.0,0.00025773,30]
[372592039,1752696653229,-153.0,0.00025773,30]
[372592040,1752696653238,-153.0,0.00025773,30]
[372592041,1752696653247,-153.0,0.00025773,30]
[372592042,1752696653256,-153.0,0.00025774,30]
[372592043,1752696653266,-153.0,0.00025774,30]
[372592044,1752696653275,-153.0,0.00025774,30]
[372592045,1752696653284,-153.0,0.00025774,30]
[372592046,1752696653293,-153.0,0.00025774,30]
[372592047,1752696653302,-153.0,0.00025774,30]
[372592048,1752696653312,-153.0,0.00025774,30]
[372592049,1752696653321,-151.038335,0.00025775,31]
[372592050,1752696653331,-153.0,0.00025775,30]
[372592051,1752696653340,-153.0,0.00025775,30]
[372592052,1752696653350,-153.0,0.00025775,30]
[372592053,1752696653360,-153.0,0.00025775,30]
[372592054,1752696653370,-153.0,0.00025775,30]
[372592055,1752696653386,-153.0,0.00025775,30]
[372592056,1752696653398,-153.0,0.00025775,30]
[372592057,1752696653408,-232.87420986,0.00025778,2]
[372592058,1752696653419,-1000.0,0.0002578,5]
[372592059,1752696653429,-1127.071532,0.0002578,5]
[372592060,1752696653439,-153.0,0.00025783,30]
[372592061,1752696653448,-153.0,0.00025783,30]
[372592062,1752696653457,-153.0,0.00025783,30]
[372592063,1752696653467,-153.0,0.00025783,30]
[372592064,1752696653608,-151.038335,0.00025788,2]
[372592065,1752696653618,-160.0,0.00025789,6]
[372592066,1752696653627,-161.00384161,0.00025789,5]
[372592067,1752696653636,-6432.44306878,0.00025799,2]
[372592068,1752696653646,-165.20533425,0.00025799,2]
[372592069,1752696653655,-2000.0,0.000258,2]
[372592070,1752696653665,-2000.0,0.000258,2]
[372592071,1752696653675,-1000.0,0.000258,5]
[372592072,1752696653685,-1000.0,0.000258,5]
[372592073,1752696653694,-2000.0,0.000258,2]
[372592074,1752696653703,-250.0,0.000258,2]
[372592075,1752696653712,-527.23,0.000258,31]
[372592076,1752696653722,-527.23,0.000258,31]
[372592077,1752696653732,-527.23,0.000258,31]
[372592078,1752696653741,-527.23,0.000258,31]
[372592079,1752696653750,-527.23,0.000258,31]
[372592080,1752696653760,-527.23,0.000258,31]
[372592081,1752696653770,-527.23,0.000258,31]
[372592082,1752696653779,-527.23,0.000258,31]
[372592083,1752696653788,-527.23,0.000258,31]
[372592084,1752696653799,-527.23,0.000258,31]
[372592085,1752696653808,-527.23,0.000258,31]
[372592086,1752696653818,-527.23,0.000258,31]
[372592087,1752696653827,-527.23,0.000258,31]
[372592088,1752696653837,-527.23,0.000258,31]
[372592089,1752696653846,-527.23,0.000258,31]
[372592090,1752696653856,-527.23,0.000258,31]
[372592091,1752696653865,-527.23,0.000258,31]
[372592092,1752696653874,-527.23,0.000258,31]
[372592093,1752696653884,-527.23,0.000258,31]
[372592094,1752696653894,-527.23,0.000258,31]
[372592095,1752696653904,-527.23,0.000258,31]
[372592096,1752696653914,-527.23,0.000258,31]
[372592097,1752696653926,-527.23,0.000258,31]
[372592098,1752696653935,-527.23,0.000258,31]
[372592099,1752696653945,-800.0,0.000258,2]
[372592100,1752696653955,-178.021619,0.00025836,2]
[372592101,1752696653965,-576.8651031,0.00025836,2]
[372592102,1752696653974,-178.021619,0.00025836,2]
[372592103,1752696653984,-576.8651031,0.00025836,2]
[372592104,1752696653994,-178.021619,0.00025836,2]
[372592105,1752696654003,-178.021619,0.00025836,2]
[372592106,1752696654014,-159.7314836,0.00025836,2]
[372592107,1752696654023,-178.021619,0.00025836,2]
[372592108,1752696654033,-159.7314836,0.00025836,2]
[372592109,1752696654043,-178.021619,0.00025836,2]
[372592110,1752696654052,-159.7314836,0.00025836,2]
[372592111,1752696654061,-576.8651031,0.00025836,2]
[372592112,1752696654070,-159.7314836,0.00025836,2]
[372592113,1752696654080,-151.0,0.00025846,7]
[372592114,1752696654089,-151.0,0.00025846,7]
[372592115,1752696654098,-151.0,0.00025846,7]
[372592116,1752696654107,-151.0,0.00025846,7]
[372592117,1752696654117,-151.0,0.00025846,7]
[372592118,1752696654126,-151.0,0.00025846,7]
[372592119,1752696654136,-294.848218,0.00025846,7]
[372592120,1752696654145,-151.0,0.00025846,7]
[372592121,1752696654154,-151.0,0.00025846,7]
[372592122,1752696654164,-151.0,0.00025846,7]
[372592123,1752696654175,-151.0,0.00025846,7]
[372592124,1752696654184,-151.0,0.00025846,7]
[372592125,1752696654194,-151.0,0.00025846,7]
[372592126,1752696654203,-151.0,0.00025846,7]
[372592127,1752696654212,-151.0,0.00025846,7]
[372592128,1752696654222,-151.0,0.00025846,7]
[372592129,1752696654231,-151.0,0.00025846,7]
[372592130,1752696654241,-151.0,0.00025846,7]
[372592131,1752696654251,-151.0,0.00025846,7]
[372592132,1752696654260,-151.0,0.00025846,7]
[372592133,1752696654270,-151.0,0.00025846,7]
[372592134,1752696654279,-151.0,0.00025846,7]
[372592135,1752696654289,-151.0,0.00025846,7]
[372592136,1752696654299,-247.455011,0.00025846,7]
[372592137,1752696654308,-151.0,0.00025846,7]
[372592138,1752696654317,-640.666419,0.00025846,7]
[372592139,1752696654327,-640.666419,0.00025846,7]
[372592140,1752696654336,-640.666419,0.00025846,7]
[372592141,1752696654346,-151.0,0.00025846,7]
[372592142,1752696654355,-151.0,0.00025846,7]
[372592143,1752696654364,-640.666419,0.00025846,7]
[372592144,1752696654374,-640.666419,0.00025846,7]
[372592145,1752696654385,-151.0,0.00025846,7]
[372592146,1752696654395,-640.666419,0.00025846,7]
[372592147,1752696654404,-151.0,0.00025846,7]
[372592148,1752696654413,-640.666419,0.00025846,7]
[372592149,1752696654423,-151.0,0.00025846,7]
[372592150,1752696654432,-640.666419,0.00025846,7]
[372592151,1752696654441,-151.0,0.00025846,7]
[372592152,1752696654450,-640.666419,0.00025846,7]
[372592153,1752696654463,-299.467832,0.00025846,7]
[372592154,1752696654472,-640.666419,0.00025846,7]
[372592155,1752696654481,-640.666419,0.00025846,7]
[372592156,1752696654490,-640.666419,0.00025846,7]
[372592157,1752696654500,-640.666419,0.00025846,7]
[372592158,1752696654509,-640.666419,0.00025846,7]
[372592159,1752696654519,-640.666419,0.00025846,7]
[372592160,1752696654528,-640.666419,0.00025846,7]
[372592161,1752696654537,-640.666419,0.00025846,7]
[372592162,1752696654547,-640.666419,0.00025846,7]
[372592163,1752696654556,-151.0,0.00025846,7]
[372592164,1752696654565,-151.0,0.00025846,7]
[372592165,1752696654575,-151.0,0.00025846,7]
[372592166,1752696654584,-338.805352,0.00025846,7]
[372592167,1752696654594,-151.0,0.00025846,7]
[372592168,1752696654603,-338.805352,0.00025846,7]
[372592169,1752696654612,-151.0,0.00025846,7]
[372592170,1752696654621,-338.805352,0.00025846,7]
[372592171,1752696654630,-151.0,0.00025846,7]
[372592172,1752696654640,-151.0,0.00025846,7]
[372592173,1752696654649,-151.0,0.00025846,7]
[372592174,1752696654658,-338.805352,0.00025846,7]
[372592175,1752696654668,-151.0,0.00025846,7]
[372592176,1752696654679,-338.805352,0.00025846,7]
[372592177,1752696654688,-338.805352,0.00025846,7]
[372592178,1752696654699,-338.805352,0.00025846,7]
[372592179,1752696654708,-338.805352,0.00025846,7]
[372592180,1752696654717,-338.805352,0.00025846,7]
[372592181,1752696654727,-338.805352,0.00025846,7]
[372592182,1752696654737,-338.805352,0.00025846,7]
[372592183,1752696654747,-338.805352,0.00025846,7]
[372592184,1752696654756,-338.805352,0.00025846,7]
[372592185,1752696654765,-338.805352,0.00025846,7]
[372592186,1752696654776,-338.805352,0.00025846,7]
[372592187,1752696654785,-338.805352,0.00025846,7]
[372592188,1752696654794,-338.805352,0.00025846,7]
[372592189,1752696654804,-338.805352,0.00025846,7]
[372592190,1752696654814,-338.805352,0.00025846,7]
[372592191,1752696654824,-338.805346,0.00025846,7]
[372592192,1752696654832,-209.544616,0.00025846,7]
[372592193,1752696654840,-465.861135,0.00025846,7]
[372592194,1752696654848,-465.861135,0.00025846,7]
[372592195,1752696654855,-465.861135,0.00025846,7]
[372592196,1752696654863,-465.861135,0.00025846,7]
[372592197,1752696654870,-465.861135,0.00025846,7]
[372592198,1752696654878,-465.861135,0.00025846,7]
[372592199,1752696654887,-465.861135,0.00025846,7]
[372592200,1752696654897,-465.861135,0.00025846,7]
[372592201,1752696654906,-465.861135,0.00025846,7]
[372592202,1752696654916,-465.861135,0.00025846,7]
[372592203,1752696654926,-465.861135,0.00025846,7]
[372592204,1752696654936,-465.861135,0.00025846,7]
[372592205,1752696654946,-465.861135,0.00025846,7]
[372592206,1752696654955,-465.861135,0.00025846,7]
[372592207,1752696654965,-465.861135,0.00025846,7]
[372592208,1752696654975,-85.71933248,0.00025846,7]
[372592209,1752696655018,-380.14180252,0.00025846,7]
[372592210,1752696655028,-465.861135,0.00025846,7]
[372592211,1752696655038,-465.861135,0.00025846,7]
[372592212,1752696655047,-649.382629,0.00025846,7]
[372592213,1752696655057,-649.382629,0.00025846,7]
[372592214,1752696655066,-649.382629,0.00025846,7]
[372592215,1752696655076,-649.382629,0.00025846,7]
[372592216,1752696655086,-649.382629,0.00025846,7]
[372592217,1752696655095,-649.382629,0.00025846,7]
[372592218,1752696655104,-649.382629,0.00025846,7]
[372592219,1752696655114,-649.382629,0.00025846,7]
[372592220,1752696655124,-649.382629,0.00025846,7]
[372592221,1752696655134,-649.382629,0.00025846,7]
[372592222,1752696655143,-649.382629,0.00025846,7]
[372592223,1752696655154,-649.382629,0.00025846,7]
[372592224,1752696655163,-649.382629,0.00025846,7]
[372592225,1752696655174,-649.382629,0.00025846,7]
[372592226,1752696655184,-649.382629,0.00025846,7]
[372592227,1752696655193,-649.382629,0.00025846,7]
[372592228,1752696655202,-649.382629,0.00025846,7]
[372592229,1752696655212,-649.382629,0.00025846,7]
[372592230,1752696655222,-649.382629,0.00025846,7]
[372592231,1752696655231,-649.382622,0.00025846,7]
[372592232,1752696655240,-182.592235,0.00025846,7]
[372592233,1752696655249,-182.592235,0.00025846,7]
[372592234,1752696655259,-182.592235,0.00025846,7]
[372592235,1752696655269,-182.592235,0.00025846,7]
[372592236,1752696655278,-182.592235,0.00025846,7]
[372592237,1752696655287,-182.592235,0.00025846,7]
[372592238,1752696655297,-182.592235,0.00025846,7]
[372592239,1752696655306,-182.592235,0.00025846,7]
[372592240,1752696655315,-182.592235,0.00025846,7]
[372592241,1752696655325,-182.592235,0.00025846,7]
[372592242,1752696655334,-182.592235,0.00025846,7]
[372592243,1752696655343,-182.592235,0.00025846,7]
[372592244,1752696655353,-182.592235,0.00025846,7]
[372592245,1752696655363,-182.592235,0.00025846,7]
[372592246,1752696655373,-182.592235,0.00025846,7]
[372592247,1752696655382,-182.592235,0.00025846,7]
[372592248,1752696655394,-182.592235,0.00025846,7]
[372592249,1752696655404,-182.592235,0.00025846,7]
[372592250,1752696655414,-151.0,0.00025846,7]
[372592251,1752696655426,-800.0,0.00025846,2]
[372592252,1752696655435,-151.038335,0.0002585,31]
[372592253,1752696655445,-151.0,0.00025866,7]
[372592254,1752696655455,-151.0,0.00025866,7]
[372592255,1752696655465,-151.0,0.00025866,7]
[372592256,1752696655476,-151.0,0.00025866,7]
[372592257,1752696655485,-151.0,0.00025866,7]
[372592258,1752696655495,-151.0,0.00025866,7]
[372592259,1752696655506,-151.0,0.00025866,7]
[372592260,1752696655518,-151.958385,0.00025866,7]
[372592261,1752696655527,-283.733549,0.00025866,7]
[372592262,1752696655537,-283.733549,0.00025866,7]
[372592263,1752696655547,-283.733549,0.00025866,7]
[372592264,1752696655556,-283.733549,0.00025866,7]
[372592265,1752696655565,-283.733549,0.00025866,7]
[372592266,1752696655574,-283.733549,0.00025866,7]
[372592267,1752696655584,-283.733549,0.00025866,7]
[372592268,1752696655593,-283.733549,0.00025866,7]
[372592269,1752696655603,-283.733549,0.00025866,7]
[372592270,1752696655612,-283.733549,0.00025866,7]
[372592271,1752696655622,-283.733549,0.00025866,7]
[372592272,1752696655632,-283.733549,0.00025866,7]
[372592273,1752696655641,-283.733549,0.00025866,7]
[372592274,1752696655651,-283.733549,0.00025866,7]
[372592275,1752696655661,-283.733549,0.00025866,7]
[372592276,1752696655671,-283.733549,0.00025866,7]
[372592277,1752696655680,-283.733549,0.00025866,7]
[372592278,1752696655688,-283.733549,0.00025866,7]
[372592279,1752696655698,-283.733549,0.00025866,7]
[372592280,1752696655707,-283.733541,0.00025866,7]
[372592281,1752696655717,-332.968941,0.00025866,7]
[372592282,1752696655726,-332.968941,0.00025866,7]
[372592283,1752696655736,-332.968941,0.00025866,7]
[372592284,1752696655745,-332.968941,0.00025866,7]
[372592285,1752696655754,-332.968941,0.00025866,7]
[372592286,1752696655763,-332.968941,0.00025866,7]
[372592287,1752696655773,-332.968941,0.00025866,7]
[372592288,1752696655782,-332.968941,0.00025866,7]
[372592289,1752696655791,-332.968941,0.00025866,7]
[372592290,1752696655801,-332.968941,0.00025866,7]
[372592291,1752696655810,-332.968941,0.00025866,7]
[372592292,1752696655819,-332.968941,0.00025866,7]
[372592293,1752696655829,-332.968941,0.00025866,7]
[372592294,1752696655839,-332.968941,0.00025866,7]
[372592295,1752696655849,-332.968941,0.00025866,7]
[372592296,1752696655858,-332.968941,0.00025866,7]
[372592297,1752696655867,-332.968941,0.00025866,7]
[372592298,1752696655877,-332.968941,0.00025866,7]
[372592299,1752696655886,-332.968941,0.00025866,7]
[372592300,1752696655895,-332.968938,0.00025866,7]
[372592301,1752696655905,-151.0,0.00025866,7]
[372592302,1752696655914,-151.0,0.00025866,7]
[372592303,1752696655924,-151.0,0.00025866,7]
[372592304,1752696655934,-151.0,0.00025866,7]
[372592305,1752696655943,-151.0,0.00025866,7]
[372592306,1752696655953,-151.0,0.00025866,7]
[372592307,1752696655963,-151.0,0.00025866,7]
[372592308,1752696655973,-151.0,0.00025866,7]
[372592309,1752696655982,-151.0,0.00025866,7]
[372592310,1752696655991,-151.0,0.00025866,7]
[372592311,1752696656001,-151.0,0.00025866,7]
[372592312,1752696656011,-151.0,0.00025866,7]
[372592313,1752696656020,-151.0,0.00025866,7]
[372592314,1752696656030,-151.0,0.00025866,7]
[372592315,1752696656039,-248.722136,0.00025866,7]
[372592316,1752696656049,-151.0,0.00025866,7]
[372592317,1752696656058,-151.0,0.00025866,7]
[372592318,1752696656068,-151.0,0.00025866,7]
[372592319,1752696656077,-151.0,0.00025866,7]
[372592320,1752696656086,-151.0,0.00025866,7]
[372592321,1752696656095,-151.0,0.00025866,7]
[372592322,1752696656105,-151.0,0.00025866,7]
[372592323,1752696656114,-151.0,0.00025866,7]
[372592324,1752696656123,-151.0,0.00025866,7]
[372592325,1752696656131,-151.0,0.00025866,7]
[372592326,1752696656141,-151.0,0.00025866,7]
[372592327,1752696656150,-151.0,0.00025866,7]
[372592328,1752696656159,-280.601575,0.00025866,7]
[372592329,1752696656168,-151.0,0.00025866,7]
[372592330,1752696656178,-151.0,0.00025866,7]
[372592331,1752696656187,-151.0,0.00025866,7]
[372592332,1752696656196,-151.0,0.00025866,7]
[372592333,1752696656206,-143.20170213,0.00025866,7]
[372592353,1752696990789,360.905176,0.00013699,2]
[372592446,1752697351011,12227.9256682,0.00017913,2]
[372592552,1752697544239,3829.13728954,0.00017861,2]
[372592553,1752697544278,21070.86271046,0.00017861,2]
[372592640,1752697832599,-331.53373234,0.00018758,2]
[372592642,1752697832612,-331.53373234,0.00018758,2]
[372592644,1752697832623,-331.53373234,0.00018759,2]
[372592647,1752697832635,-331.53373234,0.00018759,2]
[372592649,1752697832646,-406.01394174,0.00018759,2]
[372592651,1752697832659,-204.86966404,0.00018759,2]
[372592653,1752697832671,-331.53373234,0.00018759,2]
[372592655,1752697832683,-160.0,0.00018852,2]